bitfinex/quotes_BTCUSD_20250713
["timestamp","ask_amount","ask_price","bid_price","bid_amount"]
[1752419081726,1.43675879,118700.0,118690.0,2.0]
[1752419081866,1.42833483,118700.0,118690.0,2.0]
[1752419082078,1.18675886,118700.0,118690.0,2.0]
[1752419082293,1.18575886,118700.0,118690.0,2.26104]
[1752419083164,1.18675886,118700.0,118690.0,2.26104]
[1752419083301,1.43675886,118700.0,118690.0,2.26104]
[1752419084144,2.08133388,118700.0,118690.0,2.25262548]
[1752419084351,1.70089524,118700.0,118690.0,2.25262548]
[1752419084563,1.72616624,118700.0,118690.0,2.24421096]
[1752419084981,1.72616624,118700.0,118690.0,2.23579644]
[1752419085199,1.72616624,118700.0,118690.0,1.97475644]
[1752419085400,1.72816624,118700.0,118690.0,2.09782192]
[1752419085610,1.72516624,118700.0,118690.0,2.09682192]
[1752419085815,1.72516624,118700.0,118690.0,2.0884474]
[1752419086020,1.73116624,118700.0,118690.0,2.0894474]
[1752419086219,1.73516624,118700.0,118690.0,1.95151288]
[1752419086427,1.73516624,118700.0,118690.0,2.08199288]
[1752419086634,1.73516624,118700.0,118690.0,2.07357836]
[1752419086854,1.73516624,118700.0,118690.0,2.06516384]
[1752419087072,1.72674193,118700.0,118690.0,2.06516384]
[1752419087453,1.72674193,118700.0,118690.0,2.05674932]
[1752419087874,1.72674193,118700.0,118690.0,2.04833268]
[1752419088279,1.72674193,118700.0,118690.0,2.03991604]
[1752419088689,1.72674193,118700.0,118690.0,2.0314994]
[1752419089129,1.72674193,118700.0,118690.0,2.02308276]
[1752419089352,1.72674193,118700.0,118690.0,2.01466612]
[1752419089763,1.72674193,118700.0,118690.0,2.00624948]
[1752419089969,1.26667418,118700.0,118690.0,2.09167941]
[1752419090172,1.50241954,118700.0,118690.0,2.09167941]
[1752419090385,1.22714668,118700.0,118690.0,2.09167941]
[1752419090595,0.80558738,118700.0,118690.0,2.12177941]
[1752419090814,1.05558738,118700.0,118690.0,2.12177941]
[1752419091027,1.07012823,118700.0,118690.0,2.12476941]
[1752419091238,1.07012823,118700.0,118690.0,2.12680941]
[1752419091664,1.07012823,118700.0,118690.0,2.04137948]
[1752419092512,1.38781568,118700.0,118690.0,2.04137948]
[1752419092721,1.38781568,118700.0,118690.0,2.00624948]
[1752419093547,1.39623964,118700.0,118690.0,2.00624948]
[1752419093761,1.42048568,118700.0,118690.0,2.00624948]
[1752419095237,1.44575833,118700.0,118690.0,2.00624948]
[1752419095449,1.65447484,118700.0,118690.0,2.00624948]
[1752419095659,1.65447533,118700.0,118690.0,2.00624948]
[1752419096245,1.64605116,118700.0,118690.0,2.00624948]
[1752419096862,1.46913458,118700.0,118690.0,2.00624948]
[1752419097067,1.63762657,118700.0,118690.0,2.00624948]
[1752419097915,1.62920219,118700.0,118690.0,2.00624948]
[1752419098129,1.78757225,118700.0,118690.0,2.00624948]
[1752419098333,1.70214232,118700.0,118690.0,2.00624948]
[1752419098553,1.71945792,118700.0,118690.0,2.00624948]
[1752419099376,1.76945792,118700.0,118690.0,1.99783473]
[1752419099729,1.77725677,118700.0,118690.0,1.98941998]
[1752419100141,1.77725677,118700.0,118690.0,1.98100523]
[1752419100370,1.77725677,118700.0,118690.0,1.97258753]
[1752419100824,1.80252877,118700.0,118690.0,1.96416983]
[1752419101269,1.80252877,118700.0,118690.0,1.95575213]
[1752419101716,1.80252877,118700.0,118690.0,1.94733443]
[1752419101953,1.82050113,118700.0,118690.0,1.93891673]
[1752419102399,1.82050113,118700.0,118690.0,1.93049903]
[1752419102866,2.22361851,118700.0,118690.0,1.92208133]
[1752419103095,2.22361851,118700.0,118690.0,1.55656048]
[1752419103327,2.22361851,118700.0,118690.0,1.54814278]
[1752419103575,2.13818858,118700.0,118690.0,1.53972508]
[1752419103779,2.14403694,118700.0,118690.0,1.40924508]
[1752419104004,2.27447694,118700.0,118690.0,1.53126738]
[1752419104214,2.35990687,118700.0,118690.0,1.50180541]
[1752419104426,2.35990687,118700.0,118690.0,1.49238771]
[1752419104427,2.35590687,118700.0,118690.0,1.49238771]
[1752419104653,2.34990687,118700.0,118690.0,1.49138771]
[1752419104879,2.37365932,118700.0,118690.0,1.45350804]
[1752419105089,2.38265932,118700.0,118690.0,1.45550804]
[1752419105298,2.46722932,118700.0,118690.0,1.44609034]
[1752419105505,2.46722932,118700.0,118690.0,0.73277472]
[1752419105506,2.44347687,118700.0,118690.0,0.73277472]
[1752419105731,2.44347687,118700.0,118690.0,0.19138382]
[1752419105732,2.47422932,118700.0,118690.0,0.19138382]
[1752419105939,0.60685679,118640.0,118630.0,0.20196]
[1752419106154,1.35259175,118640.0,118630.0,0.20196]
[1752419106369,1.34650905,118640.0,118630.0,0.20196]
[1752419107234,1.68140149,118640.0,118630.0,0.33254981]
[1752419107450,1.54071995,118640.0,118630.0,0.33254981]
[1752419107661,1.38057153,118640.0,118630.0,0.20210981]
[1752419107876,1.54914873,118640.0,118630.0,0.33254981]
[1752419108098,1.60775172,118640.0,118630.0,0.33254981]
[1752419108327,1.59089422,118640.0,118630.0,0.33254981]
[1752419108568,1.63412551,118640.0,118630.0,0.33254981]
[1752419108803,2.05955309,118640.0,118630.0,0.33254981]
[1752419109023,1.74186564,118640.0,118630.0,0.33254981]
[1752419109472,2.05955309,118640.0,118630.0,0.33254981]
[1752419109700,1.75872307,118640.0,118630.0,0.33254981]
[1752419109929,1.70298244,118640.0,118630.0,0.33254981]
[1752419110339,1.69455408,118640.0,118630.0,0.33254981]
[1752419110752,1.71749421,118640.0,118630.0,0.33254981]
[1752419111400,2.59325424,118640.0,118600.0,2.1]
[1752419111712,1.62698721,118610.0,118600.0,2.10049968]
[1752419111900,1.61067721,118610.0,118600.0,2.09207968]
[1752419112116,1.65481048,118610.0,118600.0,2.06260967]
[1752419112240,1.65481048,118610.0,118600.0,2.05418967]
[1752419112446,1.74024041,118610.0,118600.0,2.05418967]
[1752419112660,1.31416283,118610.0,118600.0,2.01629966]
[1752419112870,1.69940011,118610.0,118600.0,2.01829966]
[1752419113070,1.72469011,118610.0,118600.0,2.00987966]
[1752419113496,1.67469011,118610.0,118600.0,1.97196767]
[1752419113721,1.62469011,118610.0,118600.0,2.23280767]
[1752419113944,1.68312081,118610.0,118600.0,2.19489568]
[1752419114159,1.11983939,118610.0,118600.0,2.2217608]
[1752419114367,1.11983939,118610.0,118600.0,2.2250008]
[1752419114368,1.31176127,118610.0,118600.0,2.2250008]
[1752419114575,1.30333035,118610.0,118600.0,2.21657592]
[1752419114790,1.31176169,118610.0,118600.0,2.18808881]
[1752419115012,1.31376169,118610.0,118600.0,2.17966393]
[1752419115222,1.63144914,118610.0,118600.0,2.15017682]
[1752419115455,1.61458781,118610.0,118600.0,2.13542194]
[1752419115685,1.61922781,118610.0,118600.0,2.10222194]
[1752419115921,1.73777095,118610.0,118600.0,2.06430995]
[1752419116324,1.79391108,118610.0,118600.0,2.05588507]
[1752419116544,1.89764101,118610.0,118600.0,2.05588507]
[1752419116767,1.90538098,118610.0,118600.0,2.01797308]
[1752419117220,1.90538098,118610.0,118600.0,2.0095482]
[1752419117432,1.90538098,118610.0,118600.0,1.97163621]
[1752419117433,1.81995105,118610.0,118600.0,1.97163621]
[1752419117867,1.81995105,118610.0,118600.0,1.96321133]
[1752419118092,1.81995105,118610.0,118600.0,1.93372422]
[1752419118282,1.81995105,118610.0,118600.0,1.92530009]
[1752419118741,1.81995105,118610.0,118600.0,1.88739148]
[1752419118956,1.90538098,118610.0,118600.0,1.88739148]
[1752419119171,1.77575497,118610.0,118600.0,1.87896735]
[1752419119437,1.77575497,118610.0,118600.0,1.84948287]
[1752419119652,1.7986951,118610.0,118600.0,1.84105874]
[1752419123282,1.80642508,118610.0,118600.0,1.84105874]
[1752419123484,1.88412503,118610.0,118600.0,1.84105874]
[1752419123700,1.89185503,118610.0,118600.0,1.84105874]
[1752419123906,1.8689149,118610.0,118600.0,1.84105874]
[1752419124282,1.89185879,118610.0,118600.0,1.84105874]
[1752419124481,1.76518873,118610.0,118600.0,1.84105874]
[1752419124682,1.05748981,118610.0,118600.0,1.84105874]
[1752419124926,0.96257451,118610.0,118600.0,1.90999874]
[1752419125111,0.90365381,118610.0,118600.0,1.90999874]
[1752419125319,0.69862992,118610.0,118600.0,1.90799874]
[1752419125492,0.69862992,118610.0,118600.0,1.99442867]
[1752419125493,0.38970046,118610.0,118600.0,1.99442867]
[1752419125868,0.36441046,118610.0,118600.0,1.99442867]
[1752419126344,0.70241046,118610.0,118600.0,1.99342867]
[1752419126558,0.70041046,118610.0,118600.0,1.99342867]
[1752419126744,0.70141046,118610.0,118600.0,1.99642867]
[1752419126994,0.70441046,118610.0,118600.0,1.99642867]
[1752419127212,0.70441046,118610.0,118600.0,1.91099874]
[1752419127448,0.70141046,118610.0,118600.0,1.91099874]
[1752419127627,1.01333992,118610.0,118600.0,1.91099874]
[1752419128153,0.70241046,118610.0,118600.0,1.91099874]
[1752419128369,0.70216072,118610.0,118600.0,1.91099874]
[1752419128571,0.70216072,118610.0,118600.0,1.99642867]
[1752419130537,1.01309018,118610.0,118600.0,1.99642867]
[1752419131308,1.01309018,118610.0,118600.0,1.91099874]
[1752419131513,0.98810965,118610.0,118600.0,1.91099874]
[1752419132165,0.42718019,118610.0,118600.0,1.91099874]
[1752419132366,0.67718019,118610.0,118600.0,1.91099874]
[1752419133692,0.98810965,118610.0,118600.0,1.91099874]
[1752419133907,0.98810965,118610.0,118600.0,1.99642867]
[1752419134111,0.67718019,118610.0,118600.0,1.99642867]
[1752419134580,0.67718019,118610.0,118600.0,1.91099874]
[1752419135651,0.002,118610.0,118600.0,1.91099874]
[1752419136094,0.25,118620.0,118600.0,2.1580282]
[1752419136359,0.34,118620.0,118610.0,0.26088]
[1752419136569,0.35,118630.0,118610.0,0.26088]
[1752419136570,0.1,118630.0,118610.0,0.57684946]
[1752419136791,0.1,118630.0,118620.0,0.32618]
[1752419137010,0.1,118630.0,118620.0,0.33122]
[1752419138098,0.0698,118630.0,118620.0,0.33122]
[1752419138310,0.0365,118630.0,118620.0,0.33122]
[1752419138519,0.06194139,118630.0,118620.0,0.33122]
[1752419138728,0.06194139,118630.0,118620.0,0.37308499]
[1752419138958,0.06394139,118630.0,118620.0,0.37408499]
[1752419140262,0.06294139,118630.0,118620.0,0.37408499]
[1752419140479,0.06394139,118630.0,118620.0,0.37408499]
[1752419141375,0.06294139,118630.0,118620.0,0.37408499]
[1752419141808,0.13015416,118630.0,118620.0,0.37608499]
[1752419143631,0.06294139,118630.0,118620.0,0.37608499]
[1752419145794,0.13015416,118630.0,118620.0,0.33422]
[1752419146901,0.06294139,118630.0,118620.0,0.33422]
[1752419147126,0.06294139,118630.0,118620.0,0.64514946]
[1752419147568,0.06294139,118630.0,118620.0,0.33422]
[1752419148449,0.06294139,118630.0,118620.0,0.64514946]
[1752419148681,0.06294139,118630.0,118620.0,0.40727794]
[1752419151346,0.0375,118630.0,118620.0,0.40727794]
[1752419152015,0.0375,118630.0,118620.0,0.80363733]
[1752419152454,0.06721277,118650.0,118630.0,0.0614]
[1752419152702,0.09160088,118650.0,118640.0,0.84219667]
[1752419152907,0.09160088,118650.0,118640.0,0.92551939]
[1752419153127,0.09160088,118650.0,118640.0,0.61458993]
[1752419155447,0.09160088,118650.0,118640.0,0.61558993]
[1752419155960,0.09260088,118650.0,118640.0,0.61558993]
[1752419157068,0.02538811,118650.0,118640.0,0.61558993]
[1752419158587,0.02538811,118650.0,118640.0,0.92651939]
[1752419159218,0.02538811,118650.0,118640.0,0.61558993]
[1752419161376,0.001,118650.0,118640.0,1.01194932]
[1752419161598,0.06721277,118670.0,118660.0,0.062]
[1752419161820,0.06721277,118670.0,118660.0,0.41631993]
[1752419162036,0.06721277,118670.0,118660.0,0.41926993]
[1752419163783,0.06721277,118690.0,118660.0,0.41926993]
[1752419163994,0.06736247,118690.0,118680.0,0.062]
[1752419164243,0.06736247,118690.0,118680.0,0.32465]
[1752419164434,0.06736247,118690.0,118680.0,0.35762067]
[1752419164653,0.10210249,118690.0,118680.0,0.36057067]
[1752419165056,0.10310249,118690.0,118680.0,0.36057067]
[1752419165505,0.10210249,118690.0,118680.0,0.36057067]
[1752419165709,0.10610249,118690.0,118680.0,0.36157067]
[1752419165933,0.03888972,118690.0,118680.0,0.36157067]
[1752419166353,0.04088972,118690.0,118680.0,0.36157067]
[1752419167292,0.0021497,118690.0,118680.0,0.36057067]
[1752419167573,0.0021497,118690.0,118680.0,0.4460006]
[1752419167802,0.0011497,118690.0,118680.0,0.4460006]
[1752419169064,0.0001497,118690.0,118680.0,0.4460006]
[1752419169302,0.0001497,118690.0,118680.0,0.4490006]
[1752419171458,0.0001497,118690.0,118680.0,0.75993006]
[1752419171680,0.0011497,118690.0,118680.0,0.4530006]
[1752419174275,0.0011497,118690.0,118680.0,0.36757067]
[1752419174488,0.0011497,118690.0,118680.0,0.33667067]
[1752419174952,0.31207916,118690.0,118680.0,0.30557067]
[1752419175170,0.31207916,118690.0,118680.0,0.30262067]
[1752419175171,0.31410916,118690.0,118680.0,0.30262067]
[1752419176066,0.31310916,118690.0,118680.0,0.29862067]
[1752419176298,0.31310916,118690.0,118680.0,0.29962067]
[1752419176519,0.0331797,118690.0,118680.0,0.29962067]
[1752419176729,0.0021797,118690.0,118680.0,0.29962067]
[1752419177426,0.0021797,118690.0,118680.0,0.29662067]
[1752419177635,0.0021797,118690.0,118680.0,0.29862067]
[1752419178063,0.0001497,118690.0,118680.0,0.29957067]
[1752419178504,0.0001497,118690.0,118680.0,0.33057067]
[1752419180264,0.0001497,118690.0,118680.0,0.30057067]
[1752419180483,0.0001087,118690.0,118680.0,0.30057067]
[1752419180918,0.0001087,118690.0,118680.0,0.33057067]
[1752419181368,0.0001087,118690.0,118680.0,0.53245067]
[1752419183645,0.0001087,118690.0,118680.0,0.56545067]
[1752419184322,0.0001087,118690.0,118680.0,0.53245067]
[1752419189925,0.0001087,118690.0,118680.0,0.56285067]
[1752419197880,0.0001087,118690.0,118680.0,0.53245067]
[1752419206678,0.31982115,118690.0,118680.0,0.49950067]
[1752419206915,0.35368115,118690.0,118680.0,0.46452]
[1752419207131,0.72558115,118690.0,118680.0,0.46452]
[1752419208425,0.69368115,118690.0,118680.0,0.46452]
[1752419209108,0.72518115,118690.0,118680.0,0.46452]
[1752419209871,0.72518115,118690.0,118680.0,0.46352]
[1752419210101,0.72518115,118690.0,118680.0,0.53741392]
[1752419210298,0.69052115,118690.0,118680.0,0.53954392]
[1752419210512,0.65982115,118690.0,118680.0,0.54265392]
[1752419210747,0.65982115,118690.0,118680.0,0.53954392]
[1752419210943,0.69072115,118690.0,118680.0,0.53954392]
[1752419211879,0.69388115,118690.0,118680.0,0.53741392]
[1752419215761,0.94388115,118690.0,118680.0,0.53741392]
[1752419217840,0.97598115,118690.0,118680.0,0.53741392]
[1752419220316,0.94388115,118690.0,118680.0,0.53741392]
[1752419220725,0.94072115,118690.0,118680.0,0.53949392]
[1752419220976,0.94378115,118690.0,118680.0,0.53949392]
[1752419221373,0.94378115,118690.0,118680.0,0.53741392]
[1752419221816,0.69378115,118690.0,118680.0,0.53741392]
[1752419222003,0.69072115,118690.0,118680.0,0.53949392]
[1752419223166,0.69378115,118690.0,118680.0,0.53741392]
[1752419226026,0.65771115,118690.0,118680.0,0.57270392]
[1752419230084,0.3401087,118690.0,118680.0,0.60580392]
[1752419232964,0.0001087,118690.0,118680.0,0.69123385]
[1752419233175,0.0001087,118690.0,118680.0,1.0088363]
[1752419233421,0.00031789,118720.0,118700.0,0.065]
[1752419233605,0.00031789,118720.0,118710.0,0.32958597]
[1752419233805,0.00031789,118720.0,118710.0,0.33059]
[1752419234032,0.03392067,118720.0,118710.0,0.33059]
[1752419236459,0.03392067,118720.0,118710.0,0.33159]
[1752419236673,0.03392067,118720.0,118710.0,0.33359]
[1752419236885,0.35152312,118720.0,118710.0,0.40581199]
[1752419237099,0.35152312,118720.0,118710.0,0.37271199]
[1752419240190,0.35347312,118720.0,118710.0,0.34081199]
[1752419240403,0.35347312,118720.0,118710.0,0.33770199]
[1752419241709,0.35152312,118720.0,118710.0,0.34081199]
[1752419241923,0.35152312,118720.0,118710.0,0.37321199]
[1752419244054,0.03392067,118720.0,118710.0,0.40341199]
[1752419247182,0.35152312,118720.0,118710.0,0.40341199]
[1752419249036,0.03392067,118720.0,118710.0,0.40341199]
[1752419253759,0.03392067,118720.0,118710.0,0.37321199]
[1752419253992,0.35152312,118720.0,118710.0,0.37321199]
[1752419255250,0.38932312,118720.0,118710.0,0.33754199]
[1752419256450,0.38932312,118720.0,118710.0,0.33546199]
[1752419258091,0.35358312,118720.0,118710.0,0.53933199]
[1752419258273,0.35358312,118720.0,118710.0,0.54231199]
[1752419263027,0.03392067,118720.0,118710.0,0.57341199]
[1752419263238,0.03392067,118720.0,118710.0,0.60451199]
[1752419266959,0.35152312,118720.0,118710.0,0.60451199]
[1752419267388,0.03392067,118720.0,118710.0,0.60451199]
[1752419267829,0.35152312,118720.0,118710.0,0.60451199]
[1752419269641,0.35152312,118720.0,118710.0,0.57341199]
[1752419270278,0.35358312,118720.0,118710.0,0.54231199]
[1752419271111,0.35358312,118720.0,118710.0,0.53933199]
[1752419272349,0.35152312,118720.0,118710.0,0.54231199]
[1752419273894,0.38478312,118720.0,118710.0,0.53933199]
[1752419274104,0.38787312,118720.0,118710.0,0.53933199]
[1752419274571,0.38478312,118720.0,118710.0,0.53933199]
[1752419274803,0.35358312,118720.0,118710.0,0.53933199]
[1752419275298,0.35358312,118720.0,118710.0,0.54240199]
[1752419275534,0.03598067,118720.0,118710.0,0.54240199]
[1752419275758,0.35358312,118720.0,118710.0,0.54240199]
[1752419278281,0.35358312,118720.0,118710.0,0.53730199]
[1752419278490,0.35358312,118720.0,118710.0,0.54236199]
[1752419283081,0.35358312,118720.0,118710.0,0.57236199]
[1752419284568,0.35152312,118720.0,118710.0,0.57236199]
[1752419284781,0.35152312,118720.0,118710.0,0.60276199]
[1752419285421,0.03392067,118720.0,118710.0,0.60276199]
[1752419286067,0.00031789,118720.0,118710.0,0.60276199]
[1752419287217,0.00031789,118720.0,118710.0,1.00579437]
[1752419287441,0.00031789,118720.0,118710.0,0.68819192]
[1752419291334,0.00031789,118720.0,118710.0,1.00579437]
[1752419291798,0.00031789,118720.0,118710.0,1.30249437]
[1752419292434,0.0204,118730.0,118710.0,1.31703522]
[1752419292645,0.0204,118730.0,118720.0,0.73016817]
[1752419292646,0.02054978,118730.0,118720.0,0.73016817]
[1752419292852,0.02054978,118730.0,118720.0,0.74296032]
[1752419293537,0.02054978,118730.0,118720.0,0.45027094]
[1752419293954,0.02254978,118730.0,118720.0,0.45027094]
[1752419294156,0.02054978,118730.0,118720.0,0.45027094]
[1752419294384,0.02054978,118730.0,118720.0,0.76787339]
[1752419294838,0.02054978,118730.0,118720.0,0.45027094]
[1752419295978,0.02054978,118730.0,118720.0,0.76787339]
[1752419296413,0.02054978,118730.0,118720.0,0.45027094]
[1752419296834,0.01214031,118730.0,118720.0,1.07911424]
[1752419297936,0.01214031,118730.0,118720.0,1.08311424]
[1752419298151,0.01214031,118730.0,118720.0,1.08611424]
[1752419298789,0.01214031,118730.0,118720.0,0.76851179]
[1752419299445,0.32974276,118730.0,118720.0,0.76851179]
[1752419299664,0.32974276,118730.0,118720.0,0.73771179]
[1752419300106,0.01214031,118730.0,118720.0,0.73771179]
[1752419300314,0.01214031,118730.0,118720.0,0.72317094]
[1752419301222,0.01214031,118730.0,118720.0,0.75597094]
[1752419303190,0.32974276,118730.0,118720.0,0.68691094]
[1752419303412,0.32974276,118730.0,118720.0,0.68890094]
[1752419303624,0.32974276,118730.0,118720.0,0.69192094]
[1752419303915,0.32906948,118730.0,118720.0,0.69192094]
[1752419304765,0.33116948,118730.0,118720.0,0.69192094]
[1752419304987,0.36569948,118730.0,118720.0,0.68691094]
[1752419305193,0.39849948,118730.0,118720.0,0.68691094]
[1752419305399,0.36569948,118730.0,118720.0,0.68691094]
[1752419305810,0.36569948,118730.0,118720.0,0.68391094]
[1752419306235,0.36569948,118730.0,118720.0,0.68291094]
[1752419306443,0.36569948,118730.0,118720.0,0.38621094]
[1752419306604,0.36569948,118730.0,118720.0,0.38921094]
[1752419307428,0.36246948,118730.0,118720.0,0.39131094]
[1752419307614,0.36246948,118730.0,118720.0,0.39433094]
[1752419308472,0.00305748,118730.0,118720.0,1.10677669]
[1752419308692,0.0004,118750.0,118740.0,0.0627]
[1752419308931,0.00089916,118750.0,118740.0,0.71651946]
[1752419309150,0.00089916,118750.0,118740.0,0.71441402]
[1752419309368,0.00089916,118750.0,118740.0,0.71743402]
[1752419310225,0.0295261,118760.0,118740.0,0.71743402]
[1752419310226,0.0004,118760.0,118740.0,1.00323647]
[1752419310439,0.0004,118760.0,118750.0,0.38111519]
[1752419310658,0.0004,118760.0,118750.0,0.45477976]
[1752419311993,0.0004,118760.0,118750.0,0.42397976]
[1752419312608,0.32333245,118760.0,118750.0,0.41885976]
[1752419312870,0.35523245,118760.0,118750.0,0.33342983]
[1752419313299,0.7051349,118760.0,118750.0,0.33342983]
[1752419313518,0.38753245,118760.0,118750.0,0.33342983]
[1752419313737,0.7051349,118760.0,118750.0,0.33342983]
[1752419314835,0.38753245,118760.0,118750.0,0.33342983]
[1752419315337,0.38753245,118760.0,118750.0,0.53518983]
[1752419316321,0.03763,118760.0,118750.0,0.53518983]
[1752419316547,0.35200245,118760.0,118750.0,0.53728983]
[1752419316800,0.32010245,118760.0,118750.0,0.54030983]
[1752419317009,0.0004,118760.0,118750.0,0.62573976]
[1752419317906,0.0004,118760.0,118750.0,0.65863976]
[1752419320225,0.31800245,118760.0,118750.0,0.65863976]
[1752419321066,0.0004,118760.0,118750.0,0.65863976]
[1752419321302,0.0004,118760.0,118750.0,0.95533976]
[1752419322184,0.0004,118760.0,118750.0,0.98663976]
[1752419322897,0.0004,118760.0,118750.0,0.95533976]
[1752419324904,0.0004,118760.0,118750.0,0.98623976]
[1752419328412,0.0004,118770.0,118750.0,1.27094221]
[1752419328667,0.00054966,118770.0,118760.0,0.41325501]
[1752419328853,0.00054966,118770.0,118760.0,0.48547192]
[1752419331072,0.00054966,118770.0,118760.0,0.45457192]
[1752419331283,0.00054966,118770.0,118760.0,0.48757192]
[1752419331972,0.00054966,118770.0,118760.0,0.48857192]
[1752419333099,0.7377331,118780.0,118760.0,0.78527192]
[1752419333100,0.08013065,118780.0,118760.0,0.78527192]
[1752419333314,0.08013065,118780.0,118770.0,0.64781735]
[1752419333315,0.05054,118780.0,118770.0,0.64781735]
[1752419333525,0.05054,118780.0,118770.0,0.39554787]
[1752419333963,0.05054,118780.0,118770.0,0.42644787]
[1752419335493,0.04213424,118780.0,118770.0,0.75859117]
[1752419335943,0.0004,118800.0,118770.0,0.69519117]
[1752419336164,0.0004,118800.0,118790.0,0.0634]
[1752419336396,0.0004,118800.0,118790.0,0.1920054]
[1752419336635,0.0004,118800.0,118790.0,0.51265785]
[1752419336863,0.0004,118800.0,118790.0,0.1950554]
[1752419337527,0.0004,118810.0,118800.0,0.0622]
[1752419337743,0.00054963,118810.0,118800.0,0.1518643]
[1752419338000,0.00054963,118810.0,118800.0,0.48896694]
[1752419338627,0.00054963,118810.0,118800.0,0.50350779]
[1752419338853,0.0004,118820.0,118810.0,0.0622]
[1752419339095,0.00046,118850.0,118820.0,0.07774085]
[1752419339338,0.32028205,118850.0,118840.0,0.00213]
[1752419339556,0.35475205,118850.0,118830.0,0.25948]
[1752419339768,0.34900245,118840.0,118830.0,0.37116293]
[1752419339991,0.34961205,118850.0,118830.0,0.37634293]
[1752419340207,0.31821205,118850.0,118840.0,0.08753359]
[1752419340432,0.31821205,118850.0,118840.0,0.08755993]
[1752419340433,0.32028205,118850.0,118840.0,0.08755993]
[1752419340645,0.32028205,118850.0,118840.0,0.10715927]
[1752419341069,0.32328205,118850.0,118840.0,0.10715927]
[1752419341489,0.32328205,118850.0,118840.0,0.10410927]
[1752419341774,0.36275205,118850.0,118840.0,0.01444568]
[1752419342036,0.36575205,118850.0,118840.0,0.01654934]
[1752419342277,0.36268205,118850.0,118840.0,0.01654934]
[1752419342740,0.36575205,118850.0,118840.0,0.01654934]
[1752419343000,0.39765205,118850.0,118840.0,0.01444568]
[1752419343225,0.39765205,118850.0,118840.0,0.01654934]
[1752419343467,0.39765205,118850.0,118840.0,0.01444568]
[1752419343693,1.3052545,118850.0,118840.0,0.01444568]
[1752419343916,0.0633,118840.0,118830.0,0.285733]
[1752419344206,0.7036449,118840.0,118830.0,0.285733]
[1752419344444,0.0314,118820.0,118810.0,0.20168]
[1752419344696,0.35107245,118820.0,118810.0,0.71348993]
[1752419344957,0.35414245,118820.0,118810.0,0.71348993]
[1752419346071,0.35107245,118820.0,118810.0,0.71561993]
[1752419346294,0.31760245,118830.0,118810.0,0.79820462]
[1752419346518,0.68900245,118840.0,118820.0,0.09058395]
[1752419346777,0.001,118840.0,118830.0,0.13696384]
[1752419346992,0.001,118840.0,118830.0,0.22239377]
[1752419347213,0.002,118840.0,118830.0,0.24252931]
[1752419347861,0.002,118840.0,118830.0,0.53922931]
[1752419348102,0.31760245,118840.0,118830.0,0.53922931]
[1752419348305,0.002,118840.0,118830.0,0.53922931]
[1752419348516,0.003,118840.0,118830.0,0.53922931]
[1752419348729,0.32267245,118840.0,118830.0,0.53922931]
[1752419349180,0.00507,118840.0,118830.0,0.53922931]
[1752419350265,0.003,118840.0,118830.0,0.53922931]
[1752419350943,0.35224356,118850.0,118830.0,0.60092931]
[1752419350944,0.0006096,118850.0,118830.0,0.60092931]
[1752419351165,0.0006096,118850.0,118840.0,0.11863359]
[1752419351386,0.0006096,118850.0,118840.0,0.15483489]
[1752419351816,0.0026796,118850.0,118840.0,0.11858123]
[1752419352490,0.31504662,118850.0,118840.0,0.11858123]
[1752419352702,0.0056796,118850.0,118840.0,0.11858123]
[1752419352888,0.0378796,118850.0,118840.0,0.11645123]
[1752419353324,0.35031662,118850.0,118840.0,0.0310213]
[1752419353977,0.35131662,118850.0,118840.0,0.03312496]
[1752419354409,0.38131662,118850.0,118840.0,0.03312496]
[1752419354622,0.0046096,118850.0,118840.0,0.12373489]
[1752419355775,0.0004,118860.0,118840.0,0.19094766]
[1752419355996,0.00819247,118860.0,118850.0,0.34775993]
[1752419356212,0.00819247,118860.0,118850.0,0.40376069]
[1752419356857,0.00819247,118860.0,118850.0,0.70046069]
[1752419357337,0.00819247,118860.0,118850.0,0.73326069]
[1752419357527,0.01126247,118860.0,118850.0,0.69741069]
[1752419357963,0.35569949,118860.0,118850.0,0.60985076]
[1752419358391,0.35569949,118860.0,118850.0,0.61185076]
[1752419359081,0.35469949,118860.0,118850.0,0.61185076]
[1752419359306,0.04533247,118860.0,118850.0,0.61185076]
[1752419359522,0.35469949,118860.0,118850.0,0.61285076]
[1752419359760,0.00919247,118860.0,118850.0,0.78190154]
[1752419360642,0.0014,118860.0,118850.0,0.78190154]
[1752419360860,0.00920146,118860.0,118850.0,0.78190154]
[1752419361103,0.0091195,118860.0,118850.0,0.78190154]
[1752419361958,0.0091195,118860.0,118850.0,0.78306154]
[1752419362169,0.0091195,118860.0,118850.0,0.48636154]
[1752419364541,0.00131794,118860.0,118850.0,0.48636154]
[1752419365209,0.06575917,118880.0,118850.0,0.48636154]
[1752419365428,0.06575917,118880.0,118860.0,0.11305324]
[1752419365647,0.0002,118880.0,118870.0,0.48967]
[1752419365865,0.0002,118880.0,118870.0,0.57509993]
[1752419366087,0.0004,118890.0,118880.0,0.07024085]
[1752419366322,0.00089857,118890.0,118880.0,0.16278374]
[1752419366564,0.33458502,118910.0,118880.0,0.18542791]
[1752419366807,0.00303,118900.0,118890.0,0.08542993]
[1752419367042,0.0331,118890.0,118880.0,0.04698651]
[1752419367280,0.31136702,118890.0,118880.0,0.30988947]
[1752419367512,0.34749702,118890.0,118880.0,0.30778651]
[1752419368577,0.002,118890.0,118880.0,0.31177651]
[1752419369022,0.34319702,118910.0,118880.0,0.42232644]
[1752419369223,0.34,118910.0,118890.0,0.09055271]
[1752419369439,0.68319702,118910.0,118900.0,0.26064]
[1752419369658,0.68519702,118910.0,118900.0,0.26064]
[1752419370076,0.70709702,118910.0,118900.0,0.26064]
[1752419370279,1.01646404,118910.0,118900.0,0.26064]
[1752419370496,0.25034951,118920.0,118900.0,0.35107993]
[1752419370497,0.00034951,118920.0,118900.0,0.35107993]
[1752419370707,0.00034951,118920.0,118910.0,0.04176328]
[1752419370919,0.34016702,118960.0,118930.0,0.0221]
[1752419371140,0.34798252,118960.0,118940.0,0.4652619]
[1752419371354,0.30936702,118950.0,118940.0,0.46316]
[1752419371563,0.34031648,118960.0,118940.0,0.48847919]
[1752419371772,0.34031648,118960.0,118940.0,0.51414312]
[1752419372265,0.00014946,118960.0,118940.0,0.60259305]
[1752419372501,0.34797222,118970.0,118950.0,0.08753165]
[1752419372753,0.40398125,118970.0,118960.0,0.26164]
[1752419372981,0.0075,118980.0,118970.0,0.05412138]
[1752419373209,0.0075,118980.0,118970.0,0.0737836]
[1752419373429,0.02472309,119010.0,118980.0,0.0221]
[1752419373657,0.02472309,119010.0,118990.0,0.13350101]
[1752419373872,0.33409011,119010.0,118990.0,0.13652101]
[1752419374096,0.33409011,119010.0,118990.0,0.14936311]
[1752419374321,0.02472309,119010.0,118990.0,0.14936311]
[1752419374549,0.30936702,119000.0,118990.0,0.14936311]
[1752419374736,0.62177347,119000.0,118990.0,0.1472621]
[1752419374943,0.62177347,119000.0,118990.0,0.1314]